[Event "Titled Tuesday Blitz March 07 Early 2023"]
[White "Michalski, Olaf"]
[Black "Tanmay Jain"]
[WhiteFideId "1106740"]
[BlackFideId "45015481"]
[WhiteElo "2173"]
[BlackElo "2032"]
[Result "0-1"]
[Round "11"]
[TimeControl "180+2"]
[Date "2023.03.07"]
[WhiteClock "0:00:01"]
[BlackClock "0:00:10"]

1. d4 {[%clk 0:02:56]}  Nf6 {[%clk 0:02:58]} 2. Nf3 {[%clk 0:02:56]}  g6 {[%clk 0:02:55]} 3. Bf4 {[%clk 0:02:55]}  Bg7 {[%clk 0:02:56]} 4. e3 {[%clk 0:02:54]}  O-O {[%clk 0:02:56]} 5. h3 {[%clk 0:02:55]}  d5 {[%clk 0:02:56]} 6. Be2 {[%clk 0:02:48]}  Nbd7 {[%clk 0:02:50]} 7. O-O {[%clk 0:02:44]}  c6 {[%clk 0:02:47]} 8. c4 {[%clk 0:02:39]}  Ne4 {[%clk 0:02:47]} 9. Nc3 {[%clk 0:02:36]}  Nxc3 {[%clk 0:02:47]} 10. bxc3 {[%clk 0:02:36]}  Re8 {[%clk 0:02:45]} 11. Qb3 {[%clk 0:02:22]}  dxc4 {[%clk 0:02:27]} 12. Bxc4 {[%clk 0:02:21]}  e6 {[%clk 0:02:28]} 13. a4 {[%clk 0:02:15]}  Nb6 {[%clk 0:02:24]} 14. Be2 {[%clk 0:02:14]}  Nd5 {[%clk 0:02:18]} 15. Bh2 {[%clk 0:02:02]}  b6 {[%clk 0:02:14]} 16. c4 {[%clk 0:01:48]}  Ne7 {[%clk 0:02:10]} 17. Rfd1 {[%clk 0:01:44]}  Bd7 {[%clk 0:02:04]} 18. Ne5 {[%clk 0:01:24]}  Qc8 {[%clk 0:01:57]} 19. Bf3 {[%clk 0:01:21]}  Rd8 {[%clk 0:01:49]} 20. a5 {[%clk 0:01:20]}  bxa5 {[%clk 0:01:10]} 21. Rxa5 {[%clk 0:01:18]}  Be8 {[%clk 0:01:10]} 22. Qa3 {[%clk 0:01:12]}  Qb7 {[%clk 0:01:04]} 23. Ra1 {[%clk 0:00:55]}  f6 {[%clk 0:00:48]} 24. Nd3 {[%clk 0:00:42]}  e5 {[%clk 0:00:40]} 25. Nc5 {[%clk 0:00:33]}  Qc8 {[%clk 0:00:39]} 26. Rxa7 {[%clk 0:00:30]}  Rxa7 {[%clk 0:00:38]} 27. Qxa7 {[%clk 0:00:30]}  Nf5 {[%clk 0:00:37]} 28. dxe5 {[%clk 0:00:18]}  fxe5 {[%clk 0:00:37]} 29. g4 {[%clk 0:00:14]}  Nd6 {[%clk 0:00:37]} 30. Qa4 {[%clk 0:00:10]}  Bf7 {[%clk 0:00:34]} 31. Rc1 {[%clk 0:00:09]}  Be8 {[%clk 0:00:28]} 32. Ne4 {[%clk 0:00:07]}  Nf7 {[%clk 0:00:25]} 33. c5 {[%clk 0:00:07]}  Qe6 {[%clk 0:00:24]} 34. Qc4 {[%clk 0:00:07]}  Qe7 {[%clk 0:00:23]} 35. Nd6 {[%clk 0:00:06]}  Kf8 {[%clk 0:00:22]} 36. Nxe8 {[%clk 0:00:05]}  Qxe8 {[%clk 0:00:21]} 37. Be4 {[%clk 0:00:05]}  Ng5 {[%clk 0:00:20]} 38. Bg2 {[%clk 0:00:04]}  Ne6 {[%clk 0:00:18]} 39. Bg3 {[%clk 0:00:04]}  Rd2 {[%clk 0:00:16]} 40. Kh2 {[%clk 0:00:03]}  Qd7 {[%clk 0:00:16]} 41. Ra1 {[%clk 0:00:03]}  Kf7 {[%clk 0:00:16]} 42. Ra6 {[%clk 0:00:03]}  Bf8 {[%clk 0:00:13]} 43. Rxc6 {[%clk 0:00:03]}  Qe7 {[%clk 0:00:12]} 44. Ra6 {[%clk 0:00:02]}  h5 {[%clk 0:00:09]} 45. Bxe5 {[%clk 0:00:03]}  hxg4 {[%clk 0:00:09]} 46. Bd5 {[%clk 0:00:03]}  Rxf2+ {[%clk 0:00:08]} 47. Kg1 {[%clk 0:00:02]}  Rd2 {[%clk 0:00:07]} 48. Bxe6+ {[%clk 0:00:02]}  Ke8 {[%clk 0:00:08]} 49. Ra8+ {[%clk 0:00:01]}  Qd8 {[%clk 0:00:08]} 50. Qb5+ {[%clk 0:00:01]}  Ke7 {[%clk 0:00:08]} 51. Bd6+ {[%clk 0:00:01]}  Rxd6 {[%clk 0:00:07]} 52. Rxd8 {[%clk 0:00:02]}  Rxd8 {[%clk 0:00:07]} 53. Qb7+ {[%clk 0:00:02]}  Kxe6 {[%clk 0:00:07]} 54. Qe4+ {[%clk 0:00:03]}  Kf6 {[%clk 0:00:07]} 55. hxg4 {[%clk 0:00:03]}  Bxc5 {[%clk 0:00:08]} 56. Qf4+ {[%clk 0:00:03]}  Ke6 {[%clk 0:00:08]} 57. Qf3 {[%clk 0:00:03]}  Bd6 {[%clk 0:00:08]} 58. Qe4+ {[%clk 0:00:02]}  Kf6 {[%clk 0:00:09]} 59. Qd4+ {[%clk 0:00:02]}  Kf7 {[%clk 0:00:10]} 60. Qd5+ {[%clk 0:00:03]}  Ke7 {[%clk 0:00:10]} 61. Qg5+ {[%clk 0:00:03]}  Kf7 {[%clk 0:00:09]} 62. Qxd8 {[%clk 0:00:02]}  Be7 {[%clk 0:00:08]} 63. Qxe7+ {[%clk 0:00:02]}  Kxe7 {[%clk 0:00:09]} 64. g5 {[%clk 0:00:01]}  Ke6 {[%clk 0:00:09]} 65. Kg2 {[%clk 0:00:01]}  Kf5 {[%clk 0:00:10]} 0-1


[Site "https://www.chess.com"]

[Event "Titled Tuesday Blitz March 07 Early 2023"]
[White "Sabar, Ethmane Daouda"]
[Black "Tharushi, T H D Niklesha"]
[WhiteFideId "19600097"]
[BlackFideId "9918264"]
[WhiteElo "1950"]
[BlackElo "1596"]
[Result "1-0"]
[Round "11"]
[TimeControl "180+2"]
[Date "2023.03.07"]
[WhiteClock "0:00:17"]
[BlackClock "0:00:01"]

1. b3 {[%clk 0:03:00]}  d5 {[%clk 0:02:56]} 2. Bb2 {[%clk 0:03:01]}  c5 {[%clk 0:02:56]} 3. e3 {[%clk 0:03:02]}  Nc6 {[%clk 0:02:57]} 4. f4 {[%clk 0:03:02]}  e5 {[%clk 0:02:53]} 5. fxe5 {[%clk 0:02:56]}  Qh4+ {[%clk 0:02:51]} 6. g3 {[%clk 0:02:56]}  Qe4 {[%clk 0:02:47]} 7. Nf3 {[%clk 0:02:55]}  Bg4 {[%clk 0:02:45]} 8. Bg2 {[%clk 0:02:55]}  Nxe5 {[%clk 0:02:38]} 9. Bxe5 {[%clk 0:02:35]}  Bxf3 {[%clk 0:02:36]} 10. Qxf3 {[%clk 0:02:35]}  Qxe5 {[%clk 0:02:35]} 11. O-O {[%clk 0:02:34]}  Nf6 {[%clk 0:02:21]} 12. Nc3 {[%clk 0:02:35]}  O-O-O {[%clk 0:02:07]} 13. Nb5 {[%clk 0:01:52]}  a6 {[%clk 0:02:02]} 14. d4 {[%clk 0:01:52]}  Qe4 {[%clk 0:01:46]} 15. Qf2 {[%clk 0:01:33]}  Qe6 {[%clk 0:01:34]} 16. Nc3 {[%clk 0:01:23]}  Re8 {[%clk 0:01:04]} 17. Rae1 {[%clk 0:01:18]}  Re7 {[%clk 0:00:40]} 18. dxc5 {[%clk 0:01:08]}  Ng4 {[%clk 0:00:31]} 19. Qf4 {[%clk 0:01:05]}  Nxe3 {[%clk 0:00:23]} 20. Nd1 {[%clk 0:00:55]}  Nxg2 {[%clk 0:00:20]} 21. Rxe6 {[%clk 0:00:34]}  Nxf4 {[%clk 0:00:20]} 22. Rxe7 {[%clk 0:00:34]}  Bxe7 {[%clk 0:00:20]} 23. Rxf4 {[%clk 0:00:33]}  Bxc5+ {[%clk 0:00:20]} 24. Kg2 {[%clk 0:00:33]}  f6 {[%clk 0:00:21]} 25. Rf5 {[%clk 0:00:33]}  Rd8 {[%clk 0:00:20]} 26. Nc3 {[%clk 0:00:33]}  d4 {[%clk 0:00:19]} 27. Ne4 {[%clk 0:00:34]}  Ba7 {[%clk 0:00:19]} 28. Rh5 {[%clk 0:00:32]}  Re8 {[%clk 0:00:18]} 29. Kf3 {[%clk 0:00:30]}  h6 {[%clk 0:00:18]} 30. h4 {[%clk 0:00:28]}  Kd7 {[%clk 0:00:17]} 31. Rd5+ {[%clk 0:00:28]}  Kc6 {[%clk 0:00:16]} 32. Rd6+ {[%clk 0:00:27]}  Kc7 {[%clk 0:00:15]} 33. Rd5 {[%clk 0:00:26]}  Kc6 {[%clk 0:00:15]} 34. Rf5 {[%clk 0:00:19]}  Bb6 {[%clk 0:00:06]} 35. g4 {[%clk 0:00:18]}  Ba7 {[%clk 0:00:03]} 36. g5 {[%clk 0:00:19]}  hxg5 {[%clk 0:00:04]} 37. hxg5 {[%clk 0:00:19]}  Re6 {[%clk 0:00:03]} 38. gxf6 {[%clk 0:00:19]}  gxf6 {[%clk 0:00:01]} 39. Nxf6 {[%clk 0:00:17]} 1-0


[Site "https://www.chess.com"]

[Event "Titled Tuesday Blitz March 07 Early 2023"]
[White "Winkels, Marcel"]
[Black "Jaivardhan Raj"]
[WhiteFideId "1003887"]
[BlackFideId "25744437"]
[WhiteElo "1900"]
[BlackElo "1772"]
[Result "1-0"]
[Round "11"]
[TimeControl "180+2"]
[Date "2023.03.07"]
[WhiteClock "0:02:13"]
[BlackClock "0:02:19"]

1. d4 {[%clk 0:03:00]}  Nf6 {[%clk 0:02:59]} 2. Bf4 {[%clk 0:02:58]}  e6 {[%clk 0:02:59]} 3. Nf3 {[%clk 0:02:58]}  c5 {[%clk 0:02:59]} 4. e3 {[%clk 0:02:58]}  cxd4 {[%clk 0:02:57]} 5. exd4 {[%clk 0:02:57]}  Nc6 {[%clk 0:02:58]} 6. c3 {[%clk 0:02:56]}  d5 {[%clk 0:02:58]} 7. Bd3 {[%clk 0:02:56]}  Bd6 {[%clk 0:02:58]} 8. Bg3 {[%clk 0:02:54]}  O-O {[%clk 0:02:58]} 9. Nbd2 {[%clk 0:02:50]}  Qa5 {[%clk 0:02:58]} 10. Bxd6 {[%clk 0:02:38]}  Rd8 {[%clk 0:02:57]} 11. Bg3 {[%clk 0:02:37]}  Qb6 {[%clk 0:02:48]} 12. O-O {[%clk 0:02:29]}  Bd7 {[%clk 0:02:36]} 13. Rb1 {[%clk 0:02:19]}  Rac8 {[%clk 0:02:34]} 14. Ne5 {[%clk 0:02:18]}  Nxe5 {[%clk 0:02:34]} 15. Bxe5 {[%clk 0:02:17]}  Bb5 {[%clk 0:02:19]} 16. Bxb5 {[%clk 0:02:13]} 1-0


[Site "https://www.chess.com"]

[Event "Titled Tuesday Blitz March 07 Early 2023"]
[White "Dilmukhametov, Artur"]
[Black "Sanchez, Robert"]
[WhiteFideId "24179922"]
[BlackFideId "2034360"]
[WhiteElo "2199"]
[BlackElo "2257"]
[Result "1-0"]
[Round "11"]
[TimeControl "180+2"]
[Date "2023.03.07"]
[WhiteClock "0:01:28"]
[BlackClock "0:02:27"]

1. d4 {[%clk 0:03:00]}  d5 {[%clk 0:02:59]} 2. Nc3 {[%clk 0:03:00]}  e6 {[%clk 0:02:59]} 3. Bf4 {[%clk 0:03:00]}  Nf6 {[%clk 0:02:57]} 4. e3 {[%clk 0:02:59]}  Bb4 {[%clk 0:02:57]} 5. Bd3 {[%clk 0:02:57]}  c5 {[%clk 0:02:54]} 6. Nf3 {[%clk 0:02:56]}  c4 {[%clk 0:02:54]} 7. Be2 {[%clk 0:02:56]}  Ne4 {[%clk 0:02:54]} 8. O-O {[%clk 0:02:44]}  Nxc3 {[%clk 0:02:52]} 9. bxc3 {[%clk 0:02:44]}  Bxc3 {[%clk 0:02:52]} 10. Rb1 {[%clk 0:02:45]}  O-O {[%clk 0:02:53]} 11. Be5 {[%clk 0:02:44]}  Nc6 {[%clk 0:02:52]} 12. h4 {[%clk 0:02:41]}  f6 {[%clk 0:02:52]} 13. Bg3 {[%clk 0:02:39]}  a6 {[%clk 0:02:52]} 14. Nh2 {[%clk 0:02:34]}  b5 {[%clk 0:02:50]} 15. f3 {[%clk 0:02:17]}  Bb4 {[%clk 0:02:45]} 16. e4 {[%clk 0:02:16]}  Bd6 {[%clk 0:02:44]} 17. Bxd6 {[%clk 0:02:15]}  Qxd6 {[%clk 0:02:44]} 18. exd5 {[%clk 0:02:15]}  Qxd5 {[%clk 0:02:34]} 19. c3 {[%clk 0:02:13]}  e5 {[%clk 0:02:34]} 20. dxe5 {[%clk 0:01:58]}  Qxe5 {[%clk 0:02:34]} 21. Re1 {[%clk 0:01:54]}  Bf5 {[%clk 0:02:31]} 22. Bxc4+ {[%clk 0:01:52]}  bxc4 {[%clk 0:02:31]} 23. Rxe5 {[%clk 0:01:51]}  Nxe5 {[%clk 0:02:32]} 24. Rb2 {[%clk 0:01:48]}  Rfd8 {[%clk 0:02:31]} 25. Rd2 {[%clk 0:01:46]}  Nd3 {[%clk 0:02:30]} 26. Nf1 {[%clk 0:01:41]}  Re8 {[%clk 0:02:29]} 27. Re2 {[%clk 0:01:36]}  Rab8 {[%clk 0:02:29]} 28. Rxe8+ {[%clk 0:01:34]}  Rxe8 {[%clk 0:02:28]} 29. Qd2 {[%clk 0:01:34]}  Re1 {[%clk 0:02:27]} 30. Qf4 {[%clk 0:01:28]} 1-0